bitfinex/quotes_ETHUSD_20240821
["timestamp","ask_amount","ask_price","bid_price","bid_amount"]
[1724269290626,3.78261,2643.7,2643.2,2.2907]
[1724269290627,3.78287,2643.5,2643.2,2.2907]
[1724269290815,3.78261,2643.7,2643.2,2.2907]
[1724269291018,7.56475,2643.9,2643.3,3.78312]
[1724269291331,1.269775,2643.9,2643.1,2.43]
[1724269291534,3.78298,2643.5,2642.9,3.78366]
[1724269291735,3.78274,2643.6,2642.9,3.78364]
[1724269292031,3.78274,2643.6,2643.0,0.621364]
[1724269292216,3.78301,2643.4,2642.8,6.21386]
[1724269292414,3.78332,2643.2,2642.8,2.43]
[1724269292631,3.78332,2643.2,2641.9,0.59307757]
[1724269292632,3.78332,2643.2,2642.4,2.43]
[1724269292789,7.5673,2643.0,2642.4,7.21431]
[1724269293009,3.78375,2642.9,2642.4,2.43]
[1724269293661,7.5673,2643.0,2642.3,3.78443]
[1724269294165,3.78373,2642.9,2642.3,3.78443]
[1724269294570,3.78395,2642.8,2642.1,6.20447]
[1724269294790,3.78417,2642.6,2642.1,6.20447]
[1724269295255,7.56793,2642.8,2642.1,6.20447]
[1724269295456,3.78402,2642.7,2642.1,3.78476]
[1724269295658,3.78402,2642.7,2642.1,7.56954]
[1724269295843,3.78402,2642.7,2642.1,3.78476]
[1724269296717,7.56814,2642.7,2642.1,3.78476]
[1724269297054,9.9026,2643.0,2642.0,3.78489]
[1724269297266,3.78437,2642.5,2641.7,6.14112]
[1724269297452,3.78451,2642.4,2641.8,3.78528]
[1724269298876,7.56955,2642.2,2641.7,2.3558]
[1724269299030,3.78487,2642.1,2641.6,3.78557]
[1724269299724,3.78474,2642.2,2641.6,3.78557]
[1724269299924,3.78474,2642.2,2641.6,7.57106]
[1724269300155,3.78474,2642.2,2641.6,7.57099]
[1724269300741,7.44,2642.6,2642.1,3.78473]
[1724269301384,3.78451,2642.4,2641.9,3.78504]
[1724269301678,3.78458,2642.3,2641.7,9.85145]
[1724269301843,3.78451,2642.4,2641.7,6.06604]
[1724269302048,3.78451,2642.4,2641.7,6.8032659]
[1724269302381,7.56902,2642.4,2641.7,6.8032659]
[1724269302536,7.56902,2642.4,2641.7,6.06609]
[1724269302537,3.7847,2642.3,2641.7,6.06609]
[1724269302885,3.78451,2642.4,2641.7,3.78539]
[1724269302886,3.78473,2642.2,2641.7,3.78539]
[1724269303026,3.78502,2642.0,2641.5,3.78561]
[1724269303223,3.78502,2642.0,2641.3,3.78593]
[1724269303425,3.78518,2641.9,2641.3,3.78593]
[1724269303642,3.78539,2641.8,2641.2,3.78614]
[1724269303865,3.78581,2641.5,2641.1,2.3866]
[1724269304069,3.7861,2641.3,2640.7,6.18818]
[1724269304285,7.57222,2641.3,2640.7,6.18818]
[1724269304497,3.7861,2641.3,2640.7,6.18818]
[1724269304713,3.7861,2641.3,2640.7,7.185707]
[1724269304873,3.7861,2641.3,2640.7,10.972497]
[1724269305077,3.78581,2641.5,2640.9,3.78657]
[1724269305462,3.78551,2641.7,2640.9,3.78655]
[1724269305807,11.2251,2642.0,2641.4,3.78573]
[1724269306024,11.22501,2642.0,2641.4,4.77622]
[1724269306302,3.78531,2641.8,2641.2,6.11919]
[1724269306908,3.78544,2641.7,2641.2,6.11919]
[1724269307066,3.78544,2641.7,2641.0,3.78638]
[1724269307758,3.78526,2641.9,2641.0,3.78638]
[1724269307983,3.78524,2641.9,2641.2,3.78603]
[1724269308311,16.35806,2642.0,2641.3,3.78594]
[1724269308505,16.35806,2642.0,2641.4,3.7858]
[1724269308668,3.78516,2641.9,2641.3,3.78592]
[1724269308861,3.78516,2641.9,2641.3,4.2272848]
[1724269309101,3.78516,2641.9,2641.1,0.627728]
[1724269309102,3.78539,2641.8,2641.2,3.78612]
[1724269309474,3.78516,2641.9,2641.3,3.78598]
[1724269310203,7.57041,2641.9,2641.3,3.78598]
[1724269310371,3.78516,2641.9,2641.1,4.413938]
[1724269310576,3.78547,2641.7,2641.0,3.78641]
[1724269310774,3.78547,2641.7,2640.9,2.4909]
[1724269311109,12.573,2642.0,2641.1,3.78624]
[1724269311314,3.78534,2641.8,2641.3,3.78599]
[1724269311711,7.44,2642.4,2641.4,5.4259]
[1724269311929,3.78415,2642.6,2642.0,3.78491]
[1724269312085,6.12916,2642.7,2642.1,3.78484]
[1724269312530,3.78422,2642.6,2642.1,3.78485]
[1724269312712,3.78422,2642.6,2642.0,3.78491]
[1724269313098,3.78473,2642.2,2641.6,3.78546]
[1724269313298,3.78486,2642.1,2641.6,3.78546]
[1724269313907,3.78467,2642.3,2641.4,9.21163]
[1724269314101,3.78525,2641.9,2641.3,3.78599]
[1724269314435,3.7853,2641.8,2641.3,0.992855]
[1724269314644,3.7853,2641.8,2641.3,3.78599]
[1724269315284,3.78501,2642.0,2641.4,3.78585]
[1724269315285,7.57014,2642.0,2641.4,3.78585]
[1724269315487,3.78519,2641.9,2641.4,3.78585]
[1724269315687,3.7853,2641.8,2641.2,3.78606]
[1724269316287,7.57023,2642.0,2641.4,3.78587]
[1724269316533,3.78509,2642.0,2641.4,3.78577]
[1724269316894,3.78509,2642.0,2641.5,3.78565]
[1724269317138,7.56964,2642.2,2641.6,3.78547]
[1724269317434,3.78524,2641.9,2641.4,3.78572]
[1724269317587,3.78524,2641.9,2641.2,3.78607]
[1724269317588,3.78552,2641.7,2641.2,7.57214]
[1724269317796,7.57052,2641.9,2641.3,3.78601]
[1724269318034,3.78533,2641.8,2641.3,4.778867]
[1724269318337,3.78533,2641.8,2641.3,0.992857]
[1724269318541,3.78493,2642.1,2641.1,2.3565]
[1724269318720,0.55,2642.2,2641.1,2.3565]
[1724269318721,7.44,2642.4,2641.9,3.78514]
[1724269318931,3.78445,2642.4,2641.9,3.78514]
[1724269319089,3.78438,2642.5,2641.9,3.78514]
[1724269319339,3.78438,2642.5,2641.7,6.23832]
[1724269319489,3.78445,2642.4,2641.8,3.78524]
[1724269319694,4.35133019,2642.5,2641.8,3.78524]
[1724269319695,3.78463,2642.3,2641.8,3.78524]
[1724269320445,12.26,2642.6,2642.0,3.78498]
[1724269320592,12.26,2642.6,2641.8,4.409068]
[1724269320787,3.78445,2642.4,2641.8,3.78521]
[1724269321239,3.78438,2642.5,2641.7,2.453]
[1724269321542,3.78503,2642.0,2641.4,3.78579]
[1724269321755,2.2931,2642.3,2641.1,2.3747]
[1724269321890,2.2931,2642.3,2641.7,3.78532]
[1724269321891,7.44,2642.3,2641.7,3.78532]
[1724269322090,7.44,2642.3,2641.9,3.78506]
[1724269322330,7.44,2642.3,2641.9,8.564628]
[1724269322529,7.44,2642.3,2642.0,3.78499]
[1724269322707,7.44,2642.3,2642.0,3.78488]
[1724269322908,7.44,2642.3,2642.2,3.78472]
[1724269324158,6.78362,2643.0,2642.2,3.78472]
[1724269324159,11.35923,2643.2,2642.4,3.78434]
[1724269324312,3.78368,2643.0,2642.4,0.983091]
[1724269324498,3.78364,2643.0,2642.2,2.2619]
[1724269324696,7.5759,2643.2,2642.2,2.2619]
[1724269324907,3.78397,2642.8,2642.2,2.2619]
[1724269325142,3.78405,2642.7,2642.2,2.2619]
[1724269325339,3.78425,2642.6,2641.9,0.994508]
[1724269325563,3.78429,2642.5,2641.8,6.04713]
[1724269325765,3.78429,2642.5,2641.8,2.2619]
[1724269325937,3.78481,2642.2,2641.5,6.0476]
[1724269326734,3.78481,2642.2,2641.5,2.2619]
[1724269326932,0.378481,2642.1,2641.5,2.2619]
[1724269327305,0.378481,2642.1,2641.2,3.78605]
[1724269327306,3.78517,2641.9,2641.2,3.78605]
[1724269327501,3.7851,2642.0,2641.4,3.78586]
[1724269328900,3.78478,2642.2,2641.4,3.78577]
[1724269329100,7.56906,2642.4,2641.7,3.78534]
[1724269329302,3.78458,2642.3,2641.7,3.78534]
[1724269329715,3.78486,2642.2,2641.5,3.78561]
[1724269330320,3.78502,2642.0,2641.3,3.786]
[1724269330530,3.78502,2642.0,2641.3,3.78592]
[1724269330778,3.78502,2642.0,2641.4,0.625742]
[1724269331126,3.78524,2641.9,2641.3,3.78592]
[1724269331437,3.78529,2641.8,2641.3,3.78592]
[1724269332125,3.78545,2641.7,2641.2,2.4715]
[1724269332443,3.78531,2641.8,2641.2,6.25756]
[1724269332746,3.78531,2641.8,2641.2,7.261936]
[1724269333303,3.78531,2641.8,2641.2,2.4715]
[1724269333513,3.78559,2641.6,2640.9,13.0049]
[1724269333920,3.78559,2641.6,2640.9,13.00489]
[1724269334131,3.78576,2641.5,2640.9,13.00489]
[1724269334452,3.78559,2641.6,2641.0,5.086879]
[1724269334611,7.57125,2641.6,2641.1,3.0]
[1724269334812,3.78559,2641.6,2641.1,3.0]
[1724269335118,7.57127,2641.6,2641.1,3.0]
[1724269335443,3.78559,2641.6,2641.1,3.0]
[1724269335753,3.78559,2641.6,2641.1,6.78629]
[1724269335918,3.78509,2642.0,2641.1,4.4305169]
[1724269336128,3.78509,2642.0,2640.9,2.4319]
[1724269336129,3.78518,2641.9,2641.3,3.78591]
[1724269336304,3.78541,2641.8,2641.3,3.7859]
[1724269336917,3.7856,2641.6,2641.1,3.7862]
[1724269337508,2.2634,2641.8,2640.9,7.57301]
[1724269337815,3.78569,2641.6,2641.1,3.78622]
[1724269338010,3.78569,2641.6,2641.1,7.57243]
[1724269338325,3.78569,2641.6,2641.1,7.57242]
[1724269338510,3.78569,2641.6,2641.1,3.78621]
[1724269338711,3.78566,2641.6,2640.9,3.78658]
[1724269338967,3.78595,2641.4,2640.9,3.78658]
[1724269339614,0.5134549,2641.5,2640.9,3.78649]
[1724269339814,0.5134549,2641.5,2641.0,3.78637]
[1724269340026,4.2991849,2641.5,2641.0,3.78637]
[1724269340229,4.2991849,2641.5,2641.1,3.78629]
[1724269340438,11.22522,2641.9,2641.3,3.78598]
[1724269340651,11.22522,2641.9,2641.4,3.78586]
[1724269340958,11.22522,2641.9,2641.3,3.78592]
[1724269341156,3.78536,2641.8,2641.3,3.78592]
[1724269341466,3.78529,2641.8,2641.3,3.78593]
[1724269341958,3.78546,2641.7,2641.2,2.4313]
[1724269342108,5.286511,2641.7,2641.2,2.4313]
[1724269342309,5.286511,2641.7,2641.2,6.21744]
[1724269342537,3.78546,2641.7,2641.2,6.21744]
[1724269342756,3.78561,2641.6,2641.2,2.4313]
[1724269343161,3.78583,2641.5,2641.0,3.7863]
[1724269343568,3.78552,2641.7,2641.0,3.7863]
[1724269343708,3.78545,2641.7,2641.2,3.78615]
[1724269343912,11.22516,2641.9,2641.3,3.78598]
[1724269344158,7.44,2641.9,2641.5,3.78571]
[1724269344457,7.44,2641.9,2641.4,2.4484]
[1724269344627,11.22523,2641.9,2641.4,6.2342]
[1724269345024,11.22523,2641.9,2641.4,2.4484]
[1724269345214,11.22523,2641.9,2641.1,6.1853]
[1724269345215,3.7857,2641.6,2641.1,6.1853]
[1724269345954,7.57136,2641.6,2641.1,6.1853]
[1724269346461,3.78566,2641.6,2641.1,2.3991]
[1724269346772,5.511566,2641.6,2640.6,5.3991]
[1724269347063,3.7864,2641.1,2640.6,2.3991]
[1724269347208,3.7864,2641.1,2640.6,6.186]
[1724269348061,7.57224,2641.3,2640.7,3.78685]
[1724269348411,3.78619,2641.2,2640.7,7.5737]
[1724269348723,7.57156,2641.5,2640.6,2.3991]
[1724269348909,3.78588,2641.4,2640.9,3.78651]
[1724269349549,11.604226,2641.6,2641.0,3.78636]
[1724269349923,3.78574,2641.5,2641.0,3.78636]
[1724269350125,3.78587,2641.4,2640.9,3.78651]
[1724269350557,1.5390176,2641.4,2640.6,6.18601]
[1724269350869,3.78636,2641.1,2640.6,9.97294]
[1724269351161,16.737166,2641.6,2640.6,9.97294]
[1724269351162,12.951566,2641.6,2640.8,3.78662]
[1724269351367,7.44,2641.6,2641.0,3.78634]
[1724269351515,3.7855,2641.7,2641.1,6.1853]
[1724269351516,3.78554,2641.7,2641.1,6.1853]
[1724269352018,7.57156,2641.5,2641.1,2.3991]
[1724269352218,7.57158,2641.5,2641.1,2.3991]
[1724269352864,3.78596,2641.4,2641.1,2.3991]
[1724269353066,3.78554,2641.7,2641.1,2.3991]
[1724269353374,3.78554,2641.7,2641.1,6.803948]
[1724269353846,3.77033754,2641.7,2641.2,3.78608]
[1724269354520,7.55584754,2641.7,2641.2,3.78608]
[1724269354759,3.77033754,2641.7,2641.3,3.78599]
[1724269355068,3.77033754,2641.7,2641.2,3.78615]
[1724269355865,7.44,2641.9,2641.5,3.78568]
[1724269356063,7.44,2641.9,2641.3,3.78599]
[1724269356064,7.44,2641.9,2641.6,2.4548]
[1724269356372,7.44,2641.9,2641.3,6.24079]
[1724269356573,3.78553,2641.7,2641.3,2.4548]
[1724269356725,3.7856,2641.6,2641.1,3.7862]
[1724269357059,3.7856,2641.6,2641.1,7.57242]
[1724269357457,3.7856,2641.6,2641.1,3.7862]
[1724269357678,3.7858,2641.5,2641.0,2.2988]
[1724269358020,3.7856,2641.6,2641.0,6.7555562]
[1724269358245,3.7856,2641.6,2641.1,3.78628]
[1724269358517,3.78538,2641.8,2641.1,3.78622]
[1724269358872,3.78537,2641.8,2641.3,3.78599]
[1724269359233,3.78537,2641.8,2641.3,8.329079]
[1724269359439,7.44,2641.9,2641.4,3.78577]
[1724269359778,3.78553,2641.7,2641.2,3.78606]
[1724269360333,11.22523,2641.9,2641.4,3.78575]
[1724269360703,11.22523,2641.9,2641.0,2.9691862]
[1724269360704,15.01048,2641.9,2641.3,3.78593]
[1724269360851,3.78532,2641.8,2641.3,3.78593]
[1724269361217,11.22523,2641.9,2641.3,7.57184]
[1724269361423,11.22523,2641.9,2641.4,3.78583]
[1724269363359,7.44,2641.9,2641.6,6.07158]
[1724269363672,7.44,2641.9,2641.2,3.78605]
[1724269363673,7.44,2641.9,2641.4,3.78578]
[1724269363969,11.22516,2641.9,2641.4,3.78578]
[1724269364136,11.22516,2641.9,2641.4,7.57157]
[1724269364537,3.78536,2641.8,2641.3,6.07198]
[1724269366869,3.78545,2641.7,2641.1,4.46172862]
[1724269367039,3.78573,2641.5,2641.0,6.16617]
[1724269367578,7.57101,2641.7,2641.0,2.3798]
[1724269367867,7.57101,2641.7,2641.1,3.78629]
[1724269368070,3.78545,2641.7,2641.1,3.78629]
[1724269368224,3.78546,2641.7,2641.1,3.78629]
[1724269368425,7.57051,2641.9,2641.3,3.78595]
[1724269368679,3.78533,2641.8,2641.3,3.78595]
[1724269369377,4.542271,2641.9,2641.3,3.78595]
[1724269369527,3.78522,2641.9,2641.3,3.78594]
[1724269369728,3.78523,2641.9,2641.3,3.78595]
[1724269370081,3.78576,2641.5,2641.0,2.996425]
[1724269370229,3.7855,2641.7,2641.1,3.78622]
[1724269370986,3.7856,2641.6,2641.1,3.78622]
[1724269372056,3.78581,2641.5,2641.0,2.996425]
[1724269372214,3.78597,2641.4,2641.0,2.3798]
[1724269372421,3.78568,2641.6,2641.0,2.3798]
[1724269372568,3.78568,2641.6,2641.0,3.03197226]
[1724269372771,3.78575,2641.5,2641.0,6.81840226]
[1724269374819,3.78588,2641.4,2641.0,3.03197226]
[1724269375119,3.78588,2641.4,2641.0,2.3798]
[1724269376600,7.57135,2641.6,2641.1,3.78625]
[1724269376781,3.78567,2641.6,2641.1,3.78625]
[1724269376984,7.57137,2641.6,2641.0,6.16622]
[1724269377187,3.78567,2641.6,2641.1,3.78623]
[1724269377470,7.57136,2641.6,2641.0,10.569202]
[1724269377671,3.78607,2641.3,2641.0,2.3798]
[1724269377918,7.57218,2641.3,2641.0,2.3798]
[1724269378112,3.78616,2641.2,2641.0,2.3798]
[1724269378265,7.57219,2641.3,2641.0,2.3798]
[1724269378769,3.78545,2641.7,2641.1,2.3333]
[1724269378982,3.7856,2641.6,2641.1,6.11948]
[1724269379369,7.57155,2641.5,2641.1,2.3333]
[1724269379573,4.542895,2641.5,2641.1,2.3333]
[1724269379784,3.78574,2641.5,2641.1,2.3333]
[1724269380387,3.78574,2641.5,2641.1,6.11957]
[1724269380591,3.78567,2641.6,2641.1,2.3333]
[1724269381703,3.7859,2641.4,2641.1,2.3333]
[1724269381905,7.57187,2641.4,2641.1,2.3333]
[1724269382118,3.7859,2641.4,2641.1,2.3333]
[1724269382317,1.348818,2641.8,2641.1,2.3333]
[1724269382523,0.8788818,2641.7,2641.1,2.3333]
[1724269382728,3.78584,2641.5,2641.1,2.3333]
[1724269383108,0.8788818,2641.7,2641.1,2.3333]
[1724269383109,3.78571,2641.6,2641.1,6.11958]
[1724269383314,3.78465,2642.3,2641.8,3.7852]
[1724269383520,7.56935,2642.3,2641.8,3.7852]
[1724269383828,3.78473,2642.2,2641.7,2.4205]
[1724269384413,3.78492,2642.1,2641.7,2.4205]
[1724269384746,3.78473,2642.2,2641.7,2.4205]
[1724269385218,6.14469,2642.4,2641.4,6.15182]
[1724269385412,3.78501,2642.0,2641.5,4.400882]
[1724269385751,3.78501,2642.0,2641.4,9.9376]
[1724269386350,3.78486,2642.1,2641.6,3.78556]
[1724269387797,7.56964,2642.2,2641.6,3.78556]
[1724269388046,3.78493,2642.1,2641.6,3.78551]
[1724269389906,3.78482,2642.2,2641.6,4.779183]
[1724269390106,3.78482,2642.2,2641.7,3.78531]
[1724269390419,3.78486,2642.1,2641.6,4.779303]
[1724269390618,3.78486,2642.1,2641.6,8.564763]
[1724269390816,7.56981,2642.1,2641.6,4.779193]
[1724269391034,3.78486,2642.1,2641.6,7.57096]
[1724269391203,3.78486,2642.1,2641.6,3.78546]
[1724269391402,3.78486,2642.1,2641.6,7.57097]
[1724269391703,3.78486,2642.1,2641.6,3.78546]
[1724269391904,3.78502,2642.0,2641.6,3.78546]
[1724269392167,3.78487,2642.1,2641.6,3.78546]
[1724269392316,3.78487,2642.1,2641.7,3.78541]
[1724269392525,7.44,2643.0,2641.9,2.41]
[1724269392723,4.17933049,2642.8,2642.3,3.78449]
[1724269392938,4.17933049,2642.8,2642.4,2.41]
[1724269393100,3.78389,2642.8,2642.4,2.41]
[1724269393300,3.78374,2642.9,2642.4,2.41]
[1724269393900,3.78387,2642.8,2642.4,2.41]
[1724269395975,3.78431,2642.5,2642.1,2.3146]
[1724269396177,7.5687,2642.5,2642.1,2.3146]
[1724269396544,7.56868,2642.5,2642.1,2.3146]
[1724269396856,3.78431,2642.5,2642.1,2.3146]
[1724269397750,3.78452,2642.4,2642.1,2.3146]
[1724269399076,3.78396,2642.8,2642.2,0.23146]
[1724269399243,3.78373,2642.9,2642.3,3.78443]
[1724269399443,3.78395,2642.8,2642.2,4.01618]
[1724269399642,3.78401,2642.7,2642.1,6.09937]
[1724269400243,3.78373,2642.9,2642.2,3.78471]
[1724269400448,3.78373,2642.9,2642.3,3.78455]
[1724269400643,3.78386,2642.8,2642.3,3.78455]
[1724269400878,3.78396,2642.8,2642.1,6.09933]
[1724269401081,3.78396,2642.8,2642.2,0.609933]
[1724269401302,3.78373,2642.9,2642.3,3.78449]
[1724269401443,7.44,2643.0,2642.3,3.78449]
[1724269401646,7.44,2643.0,2642.5,3.78425]
[1724269402199,7.44,2643.0,2642.4,2.4789]
[1724269402200,7.44,2643.0,2642.4,6.26333]
[1724269402424,7.44,2643.0,2642.5,1.004782]
[1724269402593,11.22361,2643.0,2642.5,1.004782]
[1724269403120,7.44,2643.0,2642.5,4.788992]
[1724269403893,7.56679,2643.2,2642.5,4.788992]
[1724269404188,7.44,2643.3,2642.7,3.78391]
[1724269404521,7.44,2643.3,2642.8,0.616251]
[1724269405827,11.22315,2643.3,2642.8,0.616251]
[1724269406025,3.78338,2643.2,2642.6,2.3786]
[1724269406192,3.78358,2643.0,2642.6,2.3786]
[1724269406978,3.78338,2643.2,2642.6,2.3786]
[1724269408003,3.78338,2643.2,2642.6,6.16265]
[1724269408187,7.44,2643.3,2642.7,0.994693]
[1724269408188,3.78345,2643.1,2642.7,0.994693]
[1724269408387,3.78345,2643.1,2642.6,2.3786]
[1724269408590,3.7828,2643.6,2642.8,3.78378]
[1724269408919,3.7828,2643.6,2642.9,3.78367]
[1724269409077,3.78294,2643.5,2642.9,4.540415]
[1724269409583,3.78294,2643.5,2642.9,0.756745]
[1724269409839,3.78301,2643.4,2642.9,0.756745]
[1724269410555,6.05043,2643.9,2642.6,2.3786]
[1724269410556,3.78371,2643.0,2642.6,2.3786]
[1724269410715,3.78336,2643.2,2642.6,2.3786]
[1724269411110,9.0555,2643.7,2642.2,2.4463]
[1724269411111,3.78373,2642.9,2642.2,2.4463]
[1724269411312,3.78381,2642.9,2642.2,2.4463]
[1724269411550,2.651236,2643.1,2642.4,3.78442]
[1724269411551,3.78349,2643.1,2642.4,3.78442]
[1724269411749,3.78349,2643.1,2642.5,2.4463]
[1724269412054,7.567,2643.1,2642.5,6.23055]
[1724269412260,3.78359,2643.0,2642.5,2.4463]
[1724269412461,3.78349,2643.1,2642.5,2.4463]
[1724269412758,3.78366,2643.0,2642.5,2.4463]
[1724269413918,0.756715,2643.0,2642.5,2.4463]
[1724269414118,3.7843,2642.5,2642.2,2.2665]
[1724269414352,3.7843,2642.5,2641.9,2.2665]
[1724269415583,3.78435,2642.5,2641.9,2.2665]
[1724269416067,3.78458,2642.3,2641.9,2.2665]
[1724269416635,3.78435,2642.5,2641.9,2.2665]
[1724269416971,3.78448,2642.4,2641.9,2.2665]
[1724269418369,3.78409,2642.7,2641.9,2.2665]
[1724269418575,3.78409,2642.7,2642.0,4.390186]
[1724269419771,3.78418,2642.6,2642.0,4.390186]
[1724269419990,3.78459,2642.3,2641.9,2.2665]
[1724269422739,3.78473,2642.2,2641.9,2.2665]
[1724269422919,3.78495,2642.1,2641.6,2.3122]
[1724269423124,3.78495,2642.1,2641.6,7.086155]
[1724269423349,7.5699,2642.1,2641.6,3.300575]
[1724269423530,3.78495,2642.1,2641.6,3.300575]
[1724269424544,3.78495,2642.1,2641.6,7.086135]
[1724269424885,3.78495,2642.1,2641.7,0.7086135]
[1724269425035,3.78495,2642.1,2641.6,7.086135]
[1724269425939,7.56935,2642.3,2641.6,10.871695]
[1724269426237,3.78466,2642.3,2641.6,7.086135]
[1724269426438,7.56934,2642.3,2641.7,3.78541]
[1724269426643,3.78474,2642.2,2641.6,7.086135]
[1724269426851,3.78474,2642.2,2641.7,0.7086135]
[1724269427191,3.78466,2642.3,2641.7,4.4940435]
[1724269427548,7.56935,2642.3,2641.7,4.4940435]
[1724269427695,3.78474,2642.2,2641.6,7.086085]
[1724269428096,3.78474,2642.2,2641.6,10.871585]
[1724269428496,3.78474,2642.2,2641.7,3.7854]
[1724269429699,3.78474,2642.2,2641.6,7.086065]
[1724269429896,3.78444,2642.4,2641.6,3.300575]
[1724269430097,7.44,2642.6,2642.3,2.3013]
[1724269430303,12.26,2642.9,2642.3,2.3013]
[1724269430304,3.78373,2642.9,2642.3,2.3013]
[1724269430930,3.78422,2642.6,2642.0,2.3964]
[1724269431131,3.78479,2642.2,2641.7,2.3964]
[1724269431711,3.7843,2642.5,2642.0,3.78491]
[1724269431929,4.541134,2642.5,2641.8,3.78519]
[1724269432097,3.7845,2642.4,2641.8,7.57041]
[1724269432297,3.7845,2642.4,2641.8,3.78519]
[1724269433001,3.78458,2642.3,2641.8,3.78519]
[1724269433554,4.541134,2642.5,2641.9,3.78503]
[1724269433714,3.7841,2642.7,2642.0,3.78499]
[1724269433915,3.7841,2642.7,2642.2,3.78472]
[1724269434257,3.78432,2642.5,2642.0,3.78492]
[1724269434459,8.325532,2642.5,2642.0,3.78492]
[1724269434600,3.78432,2642.5,2642.0,3.78492]
[1724269436297,7.56869,2642.5,2642.0,3.78492]
[1724269436461,3.78432,2642.5,2641.9,2.4311]
[1724269436607,3.78432,2642.5,2642.0,4.406629]
[1724269436808,0.97567,2642.9,2641.9,2.4311]
[1724269437120,7.56961,2642.2,2641.9,2.4311]
[1724269437444,3.78479,2642.2,2641.9,2.4311]
[1724269438833,3.78422,2642.6,2642.0,3.78493]
[1724269439064,13.47445,2643.0,2642.3,2.4347]
[1724269439065,11.22364,2643.0,2642.3,2.4347]
[1724269439205,3.7838,2642.9,2642.4,3.78443]
[1724269439403,3.78387,2642.8,2642.3,6.21927]
[1724269439708,3.7838,2642.9,2642.3,6.21927]
[1724269439942,7.56761,2642.9,2642.3,6.21927]
[1724269440143,3.78389,2642.8,2642.3,2.4347]
[1724269440914,3.78401,2642.7,2642.3,2.4347]
[1724269441420,3.78426,2642.6,2642.0,6.1077]
[1724269441629,3.78426,2642.6,2642.1,3.78484]
[1724269441830,3.78426,2642.6,2642.0,6.10773]
[1724269442156,3.78399,2642.8,2642.2,3.78465]
[1724269442321,3.78403,2642.7,2642.2,3.78465]
[1724269442650,3.78403,2642.7,2642.3,2.3313]
[1724269443521,7.56815,2642.7,2642.3,2.3313]
[1724269443826,3.78403,2642.7,2642.3,2.3313]
[1724269445906,7.56813,2642.7,2642.3,2.3313]
[1724269446153,3.78381,2642.9,2642.3,2.3313]
[1724269446358,15.26,2643.3,2642.5,2.4745]
[1724269446359,3.78322,2643.3,2642.5,2.4745]
[1724269446552,3.78388,2642.8,2642.5,2.4745]
[1724269447070,3.78366,2643.0,2642.5,2.4745]
[1724269447224,3.7838,2642.9,2642.5,2.4745]
[1724269448526,11.31,2643.5,2642.5,3.100398]
[1724269448854,3.78342,2643.2,2642.5,2.4745]
[1724269449206,3.78353,2643.1,2642.5,2.4745]
[1724269449661,3.78359,2643.0,2642.5,2.4745]
[1724269449821,3.78359,2643.0,2642.5,6.25879]
[1724269450008,3.78359,2643.0,2642.5,6.884669]
[1724269451565,7.56683,2643.2,2642.5,10.668849]
[1724269451772,3.7831,2643.4,2642.7,3.78388]
[1724269452061,3.78333,2643.2,2642.7,3.78388]
[1724269452368,3.78345,2643.1,2642.6,2.4347]
[1724269453064,3.78333,2643.2,2642.6,2.4347]
[1724269453360,3.78333,2643.2,2642.7,3.78399]
[1724269453938,7.56675,2643.2,2642.6,3.1191759]
[1724269454152,7.44,2643.5,2642.6,3.1191759]
[1724269454356,3.78316,2643.3,2642.9,2.4083]
[1724269454573,7.44,2643.5,2642.9,2.4083]
[1724269454750,3.78357,2643.0,2642.5,2.4083]
[1724269456037,3.78357,2643.0,2642.5,6.19257]
[1724269457266,3.78332,2643.2,2642.5,6.19247]
[1724269457488,3.78344,2643.1,2642.6,3.78414]
[1724269457995,3.78358,2643.0,2642.5,2.4083]
[1724269458987,3.78323,2643.3,2642.7,6.24359]
[1724269459788,3.7833,2643.2,2642.7,6.24359]
[1724269460500,7.56669,2643.2,2642.7,6.24359]
[1724269460703,3.78355,2643.1,2642.7,2.4597]
[1724269460992,3.7833,2643.2,2642.7,2.4597]
[1724269461546,3.78362,2643.0,2642.7,2.4597]
[1724269462145,3.7833,2643.2,2642.7,2.4597]
[1724269462347,7.56667,2643.2,2642.7,2.4597]
[1724269463061,3.7833,2643.2,2642.7,2.4597]
[1724269463257,7.56668,2643.2,2642.7,2.4597]
[1724269464191,3.78343,2643.1,2642.7,2.4597]
[1724269466161,3.7836,2643.0,2642.7,2.4597]
[1724269466378,3.78372,2642.9,2642.5,2.2974]
[1724269467444,4.701552,2642.9,2642.5,2.2974]
[1724269467651,3.78387,2642.8,2642.5,2.2974]
[1724269467966,0.917832,2642.9,2642.1,1.611]
[1724269467967,5.39515,2642.6,2642.1,6.19255]
[1724269468303,3.78437,2642.5,2642.1,2.4077]
[1724269469648,3.78445,2642.4,2642.1,2.4077]
[1724269469855,5.39581,2642.2,2641.7,2.2693]
[1724269470183,10.09798,2642.4,2641.9,3.78513]
[1724269470388,3.7845,2642.4,2641.9,7.57026]
[1724269470588,4.696288,2643.2,2642.3,2.2693]
[1724269470917,3.78394,2642.8,2642.3,2.2693]
[1724269471225,3.78394,2642.8,2642.3,6.05387]
[1724269471378,9.17835,2643.0,2642.3,6.05387]
[1724269471577,9.17835,2643.0,2642.5,3.78429]